fUSD/lending_fUSD_20241106
["ID","MTS","AMOUNT","RATE_DAILY","PERIOD"]
[341480162,1730920291129,-205.12656664,0.00029903,5]
[341480163,1730920291138,-500.0,0.00029903,5]
[341480164,1730920291148,-167.22,0.0002991,2]
[341480165,1730920291157,-1413.60975,0.0003,2]
[341480166,1730920291166,-151.0,0.0003,120]
[341480167,1730920291176,-151.0,0.0003,120]
[341480168,1730920291185,-294.5305,0.0003,2]
[341480169,1730920291195,-1531.79,0.0003,7]
[341480170,1730920291204,-294.53,0.0003,2]
[341480171,1730920291214,-175.0,0.0003,120]
[341480172,1730920291223,-175.0,0.0003,2]
[341480173,1730920291233,-6435.46964551,0.0003,2]
[341480174,1730920291243,-6435.46964551,0.0003,2]
[341480175,1730920291252,-158.142,0.0003,2]
[341480176,1730920291262,-158.142,0.0003,2]
[341480177,1730920291272,-158.142,0.0003,2]
[341480178,1730920291282,-158.142,0.0003,2]
[341480179,1730920291291,-158.142,0.0003,2]
[341480180,1730920291302,-158.142,0.0003,2]
[341480181,1730920291311,-158.142,0.0003,2]
[341480182,1730920291321,-158.142,0.0003,2]
[341480183,1730920291330,-158.142,0.0003,2]
[341480184,1730920291340,-218.0,0.0003,2]
[341480185,1730920291350,-381.58161669,0.0003001,2]
[341480186,1730920291359,-412.95,0.00030045,30]
[341480187,1730920291372,-661.67,0.00030135,2]
[341480188,1730920291382,-330.70455983,0.00030136,2]
[341480189,1730920291391,-500.0,0.00030136,2]
[341480190,1730920291401,-2920.66,0.00030136,2]
[341480191,1730920291410,-614.25,0.00030136,2]
[341480192,1730920291419,-500.0,0.00030136,2]
[341480193,1730920291428,-500.0,0.00030136,2]
[341480194,1730920291438,-574.18,0.00030136,2]
[341480195,1730920291447,-1205.75,0.00030136,2]
[341480196,1730920291456,-750.76,0.00030136,2]
[341480197,1730920291466,-500.0,0.00030136,2]
[341480198,1730920291475,-526.52672358,0.00030136,2]
[341480199,1730920291484,-1062.35,0.00030136,2]
[341480200,1730920291493,-997.57,0.00030136,2]
[341480201,1730920291503,-500.0,0.00030136,2]
[341480202,1730920291512,-500.0,0.00030136,2]
[341480203,1730920291521,-500.0,0.00030136,2]
[341480204,1730920291531,-500.0,0.00030136,2]
[341480205,1730920291540,-1292.06,0.00030136,2]
[341480206,1730920291549,-550.96845807,0.00030136,2]
[341480207,1730920291559,-500.0,0.00030136,2]
[341480208,1730920291567,-500.0,0.00030136,2]
[341480209,1730920291577,-500.0,0.00030136,2]
[341480210,1730920291655,-1826.45,0.00030136,2]
[341480211,1730920291665,-621.32,0.00030136,2]
[341480212,1730920291677,-500.0,0.00030136,2]
[341480213,1730920291688,-546.43,0.00030136,2]
[341480214,1730920291699,-663.78,0.00030136,2]
[341480215,1730920291711,-617.91,0.00030136,2]
[341480216,1730920291723,-500.0,0.00030136,2]
[341480217,1730920291735,-1790.04,0.00030136,2]
[341480218,1730920291746,-500.0,0.00030136,2]
[341480219,1730920291755,-500.0,0.00030136,2]
[341480220,1730920291764,-1554.56,0.00030136,2]
[341480221,1730920291774,-500.0,0.00030136,2]
[341480222,1730920291785,-525.88,0.00030136,2]
[341480223,1730920291796,-500.0,0.00030136,2]
[341480224,1730920291807,-711.29,0.00030136,2]
[341480225,1730920291818,-1234.48,0.00030136,2]
[341480226,1730920291827,-500.0,0.00030136,2]
[341480227,1730920291836,-500.0,0.00030136,2]
[341480228,1730920291848,-1153.06,0.00030136,2]
[341480229,1730920291858,-500.0,0.00030136,2]
[341480230,1730920291868,-500.0,0.00030136,2]
[341480231,1730920291879,-605.04515655,0.00030136,2]
[341480232,1730920291889,-957.34,0.00030136,2]
[341480233,1730920291898,-500.0,0.00030136,2]
[341480234,1730920291907,-500.0,0.00030136,2]
[341480235,1730920291917,-1196.66,0.00030136,2]
[341480236,1730920291928,-523.42875771,0.00030136,2]
[341480237,1730920291938,-1001.64,0.00030136,2]
[341480238,1730920291948,-500.0,0.00030136,2]
[341480239,1730920291959,-1472.58,0.00030136,2]
[341480240,1730920291971,-500.0,0.00030136,2]
[341480241,1730920291982,-1605.02,0.00030136,2]
[341480242,1730920291990,-271.12,0.00030136,2]
[341480243,1730920292003,-652.62,0.00030136,2]
[341480244,1730920292014,-500.0,0.00030136,2]
[341480245,1730920292025,-267.2847093,0.00030136,2]
[341480246,1730920292035,-1379.21,0.00030136,2]
[341480247,1730920292044,-1209.69,0.00030136,2]
[341480248,1730920292054,-1638.01,0.00030136,2]
[341480249,1730920292063,-500.0,0.00030136,2]
[341480250,1730920292072,-1179.88,0.00030136,2]
[341480251,1730920292082,-500.0,0.00030136,2]
[341480252,1730920292091,-639.69,0.00030136,2]
[341480253,1730920292100,-500.0,0.00030136,2]
[341480254,1730920292109,-600.21,0.00030136,2]
[341480255,1730920292118,-500.0,0.00030136,2]
[341480256,1730920292132,-500.0,0.00030136,2]
[341480257,1730920292141,-912.36,0.00030136,2]
[341480258,1730920292151,-500.0,0.00030136,2]
[341480259,1730920292161,-508.65,0.00030136,2]
[341480260,1730920292171,-500.0,0.00030136,2]
[341480261,1730920292180,-500.0,0.00030136,2]
[341480262,1730920292190,-610.62,0.00030136,2]
[341480263,1730920292199,-500.0,0.00030136,2]
[341480264,1730920292208,-500.0,0.00030136,2]
[341480265,1730920292218,-500.0,0.00030136,2]
[341480266,1730920292228,-500.0,0.00030136,2]
[341480267,1730920292237,-1403.53,0.00030136,2]
[341480268,1730920292246,-951.98,0.00030136,2]
[341480269,1730920292256,-1718.49,0.00030136,2]
[341480270,1730920292266,-500.0,0.00030136,2]
[341480271,1730920292279,-770.26,0.00030136,2]
[341480272,1730920292289,-534.23,0.00030136,2]
[341480273,1730920292299,-886.88,0.00030136,2]
[341480274,1730920292309,-500.0,0.00030136,2]
[341480275,1730920292320,-500.0,0.00030136,2]
[341480276,1730920292331,-3128.73,0.00030136,2]
[341480277,1730920292341,-591.92,0.00030136,2]
[341480278,1730920292351,-1587.38,0.00030136,2]
[341480279,1730920292361,-500.0,0.00030136,2]
[341480280,1730920292370,-672.38,0.00030136,2]
[341480281,1730920292381,-1225.74,0.00030136,2]
[341480282,1730920292390,-151.0,0.00030136,7]
[341480283,1730920292399,-631.72,0.00030136,2]
[341480284,1730920292408,-500.0,0.00030136,2]
[341480285,1730920292417,-1710.63,0.00030136,2]
[341480286,1730920292426,-151.0,0.00030136,7]
[341480287,1730920292435,-813.74,0.00030136,2]
[341480288,1730920292444,-500.0,0.00030136,2]
[341480289,1730920292453,-500.0,0.00030136,2]
[341480290,1730920292462,-500.0,0.00030136,2]
[341480291,1730920292471,-747.59,0.00030136,2]
[341480292,1730920292481,-1093.9,0.00030136,2]
[341480293,1730920292490,-500.0,0.00030136,2]
[341480294,1730920292499,-500.0,0.00030136,2]
[341480295,1730920292507,-500.0,0.00030136,2]
[341480296,1730920292517,-500.0,0.00030136,2]
[341480297,1730920292526,-500.0,0.00030136,2]
[341480298,1730920292535,-559.12,0.00030136,2]
[341480299,1730920292544,-151.0,0.00030136,7]
[341480300,1730920292553,-500.0,0.00030136,2]
[341480301,1730920292562,-500.0,0.00030136,2]
[341480302,1730920292571,-869.22,0.00030136,2]
[341480303,1730920292580,-151.0,0.00030136,7]
[341480304,1730920292589,-815.31,0.00030136,2]
[341480305,1730920292598,-828.15,0.00030136,2]
[341480306,1730920292607,-151.0,0.00030136,7]
[341480307,1730920292616,-500.0,0.00030136,2]
[341480308,1730920292628,-948.69,0.00030136,2]
[341480309,1730920292640,-151.0,0.00030136,7]
[341480310,1730920292649,-500.0,0.00030136,2]
[341480311,1730920292658,-6450.1,0.00030136,2]
[341480312,1730920292668,-712.2,0.00030136,2]
[341480313,1730920292677,-500.0,0.00030136,2]
[341480314,1730920292686,-1961.14,0.00030136,2]
[341480315,1730920292696,-2553.79,0.00030136,2]
[341480316,1730920292707,-933.76,0.00030136,2]
[341480317,1730920292719,-619.47,0.00030136,2]
[341480318,1730920292731,-151.0,0.00030136,7]
[341480319,1730920292741,-1552.17,0.00030136,2]
[341480320,1730920292751,-852.71,0.00030136,2]
[341480321,1730920292762,-985.31,0.00030136,2]
[341480322,1730920292771,-500.0,0.00030136,2]
[341480323,1730920292781,-234.076632,0.00030136,7]
[341480324,1730920292790,-500.0,0.00030136,2]
[341480325,1730920292800,-1319.54,0.00030136,2]
[341480326,1730920292810,-234.076632,0.00030136,7]
[341480327,1730920292820,-175.088611,0.00030136,7]
[341480328,1730920292829,-544.73,0.00030136,2]
[341480329,1730920292842,-201.220383,0.00030136,7]
[341480330,1730920292852,-1040.45,0.00030136,2]
[341480331,1730920292861,-175.088611,0.00030136,7]
[341480332,1730920292873,-1047.75,0.00030136,2]
[341480333,1730920292883,-201.220383,0.00030136,7]
[341480334,1730920292892,-1243.71,0.00030136,2]
[341480335,1730920292901,-809.24,0.00030136,2]
[341480336,1730920292910,-508.7,0.00030136,2]
[341480337,1730920292920,-1768.07,0.00030136,2]
[341480338,1730920292929,-3662.42,0.00030136,2]
[341480339,1730920292940,-2961.59,0.00030136,2]
[341480340,1730920292950,-626.81,0.00030136,2]
[341480341,1730920292962,-543.01,0.00030136,2]
[341480342,1730920292971,-706.05,0.00030136,2]
[341480343,1730920292983,-500.0,0.00030136,2]
[341480344,1730920292994,-280.903323,0.00030136,7]
[341480345,1730920293004,-651.62,0.00030136,2]
[341480346,1730920293013,-2251.89,0.00030136,2]
[341480347,1730920293023,-1884.31,0.00030136,2]
[341480348,1730920293033,-280.903323,0.00030136,7]
[341480349,1730920293043,-732.87,0.00030136,2]
[341480350,1730920293052,-500.0,0.00030136,2]
[341480351,1730920293062,-549.52173963,0.00030136,2]
[341480352,1730920293072,-151.0,0.00030136,7]
[341480353,1730920293081,-2703.76,0.00030136,2]
[341480354,1730920293091,-730.51,0.00030136,2]
[341480355,1730920293101,-759.2,0.00030136,2]
[341480356,1730920293110,-151.0,0.00030136,7]
[341480357,1730920293120,-601.73,0.00030136,2]
[341480358,1730920293131,-4472.046259,0.00030136,7]
[341480359,1730920293141,-1846.6,0.00030136,2]
[341480360,1730920293151,-500.0,0.00030136,2]
[341480361,1730920293160,-175.488353,0.00030136,7]
[341480362,1730920293170,-500.0,0.00030136,2]
[341480363,1730920293180,-2388.47,0.00030136,2]
[341480364,1730920293190,-4472.046259,0.00030136,7]
[341480365,1730920293200,-217.442755,0.00030136,2]
[341480366,1730920293209,-1087.87,0.00030136,2]
[341480367,1730920293219,-10275.63,0.00030136,2]
[341480368,1730920293229,-228.879307,0.00030136,2]
[341480369,1730920293239,-1027.83,0.00030136,2]
[341480370,1730920293248,-500.0,0.00030136,2]
[341480371,1730920293258,-934.72,0.00030136,2]
[341480372,1730920293267,-500.0,0.00030136,2]
[341480373,1730920293278,-538.45912426,0.00030136,2]
[341480374,1730920293287,-680.02,0.00030136,2]
[341480375,1730920293297,-984.02,0.00030136,2]
[341480376,1730920293307,-151.0,0.00030136,7]
[341480377,1730920293316,-2654.17,0.00030136,2]
[341480378,1730920293326,-500.0,0.00030136,2]
[341480379,1730920293336,-763.29,0.00030136,2]
[341480380,1730920293345,-2923.01,0.00030136,2]
[341480381,1730920293355,-500.0,0.00030136,2]
[341480382,1730920293365,-500.0,0.00030136,2]
[341480383,1730920293376,-1057.64,0.00030136,2]
[341480384,1730920293386,-500.0,0.00030136,2]
[341480385,1730920293395,-500.0,0.00030136,2]
[341480386,1730920293405,-500.0,0.00030136,2]
[341480387,1730920293414,-151.0,0.00030136,7]
[341480388,1730920293424,-669.62,0.00030136,2]
[341480389,1730920293434,-718.6,0.00030136,2]
[341480390,1730920293444,-500.0,0.00030136,2]
[341480391,1730920293453,-3084.36,0.00030136,2]
[341480392,1730920293463,-500.0,0.00030136,2]
[341480393,1730920293472,-727.89,0.00030136,2]
[341480394,1730920293482,-1861.65,0.00030136,2]
[341480395,1730920293492,-36940.57,0.00030136,2]
[341480396,1730920293501,-1316.34,0.00030136,2]
[341480397,1730920293511,-583.56575892,0.00030136,2]
[341480398,1730920293520,-3009.75,0.00030136,2]
[341480399,1730920293530,-500.0,0.00030136,2]
[341480400,1730920293540,-500.0,0.00030136,2]
[341480401,1730920293550,-1149.45,0.00030136,2]
[341480402,1730920293559,-500.0,0.00030136,2]
[341480403,1730920293568,-151.0,0.00030136,7]
[341480404,1730920293578,-4459.35,0.00030136,2]
[341480405,1730920293587,-539.21,0.00030136,2]
[341480406,1730920293597,-580.25,0.00030136,2]
[341480407,1730920293606,-1631.52,0.00030136,2]
[341480408,1730920293616,-151.0,0.00030136,7]
[341480409,1730920293626,-6541.84,0.00030136,2]
[341480410,1730920293640,-777.39,0.00030136,2]
[341480411,1730920293649,-500.0,0.00030136,2]
[341480412,1730920293658,-500.0,0.00030136,2]
[341480413,1730920293668,-2448.68,0.00030136,2]
[341480414,1730920293678,-1611.55,0.00030136,2]
[341480415,1730920293687,-1675.07,0.00030136,2]
[341480416,1730920293697,-2842.56,0.00030136,2]
[341480417,1730920293706,-2090.64,0.00030136,2]
[341480418,1730920293718,-729.17,0.00030136,2]
[341480419,1730920293728,-4119.94,0.00030136,2]
[341480420,1730920293737,-1561.32,0.00030136,2]
[341480421,1730920293747,-500.0,0.00030136,2]
[341480422,1730920293756,-500.0,0.00030136,2]
[341480423,1730920293766,-1446.82,0.00030136,2]
[341480424,1730920293775,-908.03,0.00030136,2]
[341480425,1730920293784,-594.47755176,0.00030136,2]
[341480426,1730920293793,-1649.61,0.00030136,2]
[341480427,1730920293803,-3168.62,0.00030136,2]
[341480428,1730920293813,-3106.24,0.00030136,2]
[341480429,1730920293823,-731.26,0.00030136,2]
[341480430,1730920293832,-3266.44,0.00030136,2]
[341480431,1730920293842,-500.0,0.00030136,2]
[341480432,1730920293851,-752.29,0.00030136,2]
[341480433,1730920293860,-714.92,0.00030136,2]
[341480434,1730920293870,-2478.44,0.00030136,2]
[341480435,1730920293879,-645.24,0.00030136,2]
[341480436,1730920293889,-822.65,0.00030136,2]
[341480437,1730920293898,-2093.22,0.00030136,2]
[341480438,1730920293908,-6208.06,0.00030136,2]
[341480439,1730920293917,-1251.86,0.00030136,2]
[341480440,1730920293927,-2267.91,0.00030136,2]
[341480441,1730920293936,-151.0,0.00030136,7]
[341480442,1730920293946,-932.36,0.00030136,2]
[341480443,1730920293955,-1161.0,0.00030136,2]
[341480444,1730920293964,-831.94,0.00030136,2]
[341480445,1730920293974,-726.61,0.00030136,2]
[341480446,1730920293983,-500.0,0.00030136,2]
[341480447,1730920293993,-627.41,0.00030136,2]
[341480448,1730920294002,-1820.52,0.00030136,2]
[341480449,1730920294012,-1064.72,0.00030136,2]
[341480450,1730920294022,-1990.87,0.00030136,2]
[341480451,1730920294032,-750.06,0.00030136,2]
[341480452,1730920294042,-500.0,0.00030136,2]
[341480453,1730920294051,-10580.04,0.00030136,2]
[341480454,1730920294061,-1538.2,0.00030136,2]
[341480455,1730920294070,-5050.46,0.00030136,2]
[341480456,1730920294079,-1128.8,0.00030136,2]
[341480457,1730920294088,-7716.34,0.00030136,2]
[341480458,1730920294098,-3986.66,0.00030136,2]
[341480459,1730920294108,-656.74,0.00030136,2]
[341480460,1730920294118,-500.63,0.00030136,2]
[341480461,1730920294131,-5027.84,0.00030136,2]
[341480462,1730920294141,-4036.63,0.00030136,2]
[341480463,1730920294150,-6250.81,0.00030136,2]
[341480464,1730920294160,-500.0,0.00030136,2]
[341480465,1730920294170,-934.04,0.00030136,2]
[341480466,1730920294179,-500.0,0.00030136,2]
[341480467,1730920294189,-500.0,0.00030136,2]
[341480468,1730920294199,-2428.87,0.00030136,2]
[341480469,1730920294209,-3700.97,0.00030136,2]
[341480470,1730920294219,-1135.07,0.00030136,2]
[341480471,1730920294229,-3817.82,0.00030136,2]
[341480472,1730920294238,-3046.7,0.00030136,2]
[341480473,1730920294247,-740.35,0.00030136,2]
[341480474,1730920294257,-3060.48,0.00030136,2]
[341480475,1730920294267,-500.0,0.00030136,2]
[341480476,1730920294277,-1194.34,0.00030136,2]
[341480477,1730920294286,-3836.62,0.00030136,2]
[341480478,1730920294296,-4916.89,0.00030136,2]
[341480479,1730920294305,-3245.5,0.00030136,2]
[341480480,1730920294314,-1506.02,0.00030136,2]
[341480481,1730920294324,-2015.43,0.00030136,2]
[341480482,1730920294333,-500.0,0.00030136,2]
[341480483,1730920294343,-1997.41,0.00030136,2]
[341480484,1730920294352,-548.49,0.00030136,2]
[341480485,1730920294361,-500.0,0.00030136,2]
[341480486,1730920294370,-1188.15,0.00030136,2]
[341480487,1730920294379,-500.0,0.00030136,2]
[341480488,1730920294389,-3551.02,0.00030136,2]
[341480489,1730920294398,-9431.91,0.00030136,2]
[341480490,1730920294407,-543.87,0.00030136,2]
[341480491,1730920294416,-500.0,0.00030136,2]
[341480492,1730920294426,-2959.67,0.00030136,2]
[341480493,1730920294435,-843.81,0.00030136,2]
[341480494,1730920294444,-2640.34,0.00030136,2]
[341480495,1730920294454,-2985.74,0.00030136,2]
[341480496,1730920294463,-643.72,0.00030136,2]
[341480497,1730920294473,-3511.16,0.00030136,2]
[341480498,1730920294482,-642.61,0.00030136,2]
[341480499,1730920294492,-528.21,0.00030136,2]
[341480500,1730920294501,-500.0,0.00030136,2]
[341480501,1730920294510,-636.38,0.00030136,2]
[341480502,1730920294519,-500.0,0.00030136,2]
[341480503,1730920294528,-836.94,0.00030136,2]
[341480504,1730920294538,-817.7,0.00030136,2]
[341480505,1730920294547,-1645.62,0.00030136,2]
[341480506,1730920294557,-500.0,0.00030136,2]
[341480507,1730920294566,-1697.61,0.00030136,2]
[341480508,1730920294575,-1293.6,0.00030136,2]
[341480509,1730920294584,-643.83,0.00030136,2]
[341480510,1730920294593,-2894.45,0.00030136,2]
[341480511,1730920294603,-820.62,0.00030136,2]
[341480512,1730920294612,-168.94784383,0.00030136,2]
[341480513,1730920294624,-500.0,0.00030136,2]
[341480514,1730920294634,-500.0,0.00030136,2]
[341480515,1730920294644,-500.0,0.00030136,2]
[341480516,1730920294654,-174.65,0.00030137,2]
[341480517,1730920294663,-771.55903372,0.00030147,2]
[341480518,1730920294672,-151.0,0.00030147,7]
[341480519,1730920294682,-512.382164,0.00030147,7]
[341480520,1730920294691,-151.0,0.00030147,7]
[341480521,1730920294701,-512.382164,0.00030147,7]
[341480522,1730920294711,-500.0,0.00030159,5]
[341480523,1730920294720,-500.0,0.00030159,5]
[341480524,1730920294729,-359.65,0.00030163,120]
[341480525,1730920294738,-500.0,0.00030186,5]
[341480526,1730920294748,-603.4308413,0.00030186,5]
[341480527,1730920294757,-500.0,0.00030186,5]
[341480528,1730920294766,-640.0,0.00030244,2]
[341480529,1730920294776,-685.09,0.00030342,2]
[341480530,1730920294784,-500.0,0.00030409,2]
[341480531,1730920294794,-661.67,0.00030409,2]
[341480532,1730920294804,-503.24608594,0.00030409,2]
[341480533,1730920294813,-500.0,0.0003041,2]
[341480534,1730920294823,-2920.66,0.0003041,2]
[341480535,1730920294832,-614.25,0.0003041,2]
[341480536,1730920294841,-500.0,0.0003041,2]
[341480537,1730920294850,-500.0,0.0003041,2]
[341480538,1730920294859,-574.18,0.0003041,2]
[341480539,1730920294868,-1205.75,0.0003041,2]
[341480540,1730920294879,-750.76,0.0003041,2]
[341480541,1730920294888,-500.0,0.0003041,2]
[341480542,1730920294897,-1062.35,0.0003041,2]
[341480543,1730920294906,-997.57,0.0003041,2]
[341480544,1730920294915,-500.0,0.0003041,2]
[341480545,1730920294924,-500.0,0.0003041,2]
[341480546,1730920294933,-500.0,0.0003041,2]
[341480547,1730920294942,-500.0,0.0003041,2]
[341480548,1730920294951,-1292.06,0.0003041,2]
[341480549,1730920294960,-500.0,0.0003041,2]
[341480550,1730920294969,-500.0,0.0003041,2]
[341480551,1730920294978,-500.0,0.0003041,2]
[341480552,1730920294988,-1826.45,0.0003041,2]
[341480553,1730920294997,-621.32,0.0003041,2]
[341480554,1730920295006,-500.0,0.0003041,2]
[341480555,1730920295015,-663.78,0.0003041,2]
[341480556,1730920295023,-546.43,0.0003041,2]
[341480557,1730920295033,-617.91,0.0003041,2]
[341480558,1730920295042,-185.20109903,0.0003041,2]
[341480559,1730920295052,-151.0,0.0003041,7]
[341480560,1730920295061,-1790.04,0.0003041,2]
[341480561,1730920295070,-500.0,0.0003041,2]
[341480562,1730920295079,-500.0,0.0003041,2]
[341480563,1730920295088,-1554.56,0.0003041,2]
[341480564,1730920295098,-193.21606294,0.0003041,2]
[341480565,1730920295107,-525.88,0.0003041,2]
[341480566,1730920295116,-500.0,0.0003041,2]
[341480567,1730920295127,-711.29,0.0003041,2]
[341480568,1730920295136,-1234.48,0.0003041,2]
[341480569,1730920295145,-151.0,0.0003041,7]
[341480570,1730920295155,-500.0,0.0003041,2]
[341480571,1730920295164,-500.0,0.0003041,2]
[341480572,1730920295173,-1153.06,0.0003041,2]
[341480573,1730920295182,-500.0,0.0003041,2]
[341480574,1730920295192,-227.4018615,0.0003041,2]
[341480575,1730920295201,-957.34,0.0003041,2]
[341480576,1730920295210,-151.0,0.0003041,7]
[341480577,1730920295219,-500.0,0.0003041,2]
[341480578,1730920295229,-500.0,0.0003041,2]
[341480579,1730920295239,-1196.66,0.0003041,2]
[341480580,1730920295249,-1001.64,0.0003041,2]
[341480581,1730920295259,-164.7259928,0.0003041,2]
[341480582,1730920295268,-1472.58,0.0003041,2]
[341480583,1730920295278,-500.0,0.0003041,2]
[341480584,1730920295286,-1605.02,0.0003041,2]
[341480585,1730920295295,-271.12,0.0003041,2]
[341480586,1730920295304,-286.352802,0.0003041,7]
[341480587,1730920295314,-652.62,0.0003041,2]
[341480588,1730920295324,-158.158502,0.0003041,7]
[341480589,1730920295334,-286.352802,0.0003041,7]
[341480590,1730920295343,-500.0,0.0003041,2]
[341480591,1730920295354,-151.0,0.0003041,7]
[341480592,1730920295364,-1379.21,0.0003041,2]
[341480593,1730920295374,-1209.69,0.0003041,2]
[341480594,1730920295384,-151.0,0.0003041,7]
[341480595,1730920295393,-1638.01,0.0003041,2]
[341480596,1730920295403,-500.0,0.0003041,2]
[341480597,1730920295412,-1179.88,0.0003041,2]
[341480598,1730920295422,-500.0,0.0003041,2]
[341480599,1730920295432,-639.69,0.0003041,2]
[341480600,1730920295441,-600.21,0.0003041,2]
[341480601,1730920295450,-500.0,0.0003041,2]
[341480602,1730920295459,-500.0,0.0003041,2]
[341480603,1730920295468,-500.0,0.0003041,2]
[341480604,1730920295477,-912.36,0.0003041,2]
[341480605,1730920295486,-500.0,0.0003041,2]
[341480606,1730920295495,-508.65,0.0003041,2]
[341480607,1730920295504,-500.0,0.0003041,2]
[341480608,1730920295513,-500.0,0.0003041,2]
[341480609,1730920295522,-610.62,0.0003041,2]
[341480610,1730920295531,-500.0,0.0003041,2]
[341480611,1730920295539,-500.0,0.0003041,2]
[341480612,1730920295549,-151.0,0.0003041,7]
[341480613,1730920295560,-151.0,0.0003041,7]
[341480614,1730920295572,-500.0,0.0003041,2]
[341480615,1730920295582,-151.0,0.0003041,7]
[341480616,1730920295593,-500.0,0.0003041,2]
[341480617,1730920295604,-1403.53,0.0003041,2]
[341480618,1730920295615,-151.0,0.0003041,7]
[341480619,1730920295628,-951.98,0.0003041,2]
[341480620,1730920295638,-856.963678,0.0003041,7]
[341480621,1730920295647,-1718.49,0.0003041,2]
[341480622,1730920295657,-500.0,0.0003041,2]
[341480623,1730920295667,-770.26,0.0003041,2]
[341480624,1730920295679,-534.23,0.0003041,2]
[341480625,1730920295689,-886.88,0.0003041,2]
[341480626,1730920295701,-500.0,0.0003041,2]
[341480627,1730920295714,-856.963678,0.0003041,7]
[341480628,1730920295724,-500.0,0.0003041,2]
[341480629,1730920295734,-3128.73,0.0003041,2]
[341480630,1730920295745,-591.92,0.0003041,2]
[341480631,1730920295755,-1587.38,0.0003041,2]
[341480632,1730920295876,-1165.332698,0.0003041,7]
[341480633,1730920295893,-500.0,0.0003041,2]
[341480634,1730920295903,-672.38,0.0003041,2]
[341480635,1730920295912,-1225.74,0.0003041,2]
[341480636,1730920295922,-1165.332698,0.0003041,7]
[341480637,1730920295932,-631.72,0.0003041,2]
[341480638,1730920295942,-500.0,0.0003041,2]
[341480639,1730920295951,-1710.63,0.0003041,2]
[341480640,1730920295962,-813.74,0.0003041,2]
[341480641,1730920295971,-500.0,0.0003041,2]
[341480642,1730920295981,-500.0,0.0003041,2]
[341480643,1730920295991,-500.0,0.0003041,2]
[341480644,1730920296002,-747.59,0.0003041,2]
[341480645,1730920296011,-1093.9,0.0003041,2]
[341480646,1730920296021,-500.0,0.0003041,2]
[341480647,1730920296031,-500.0,0.0003041,2]
[341480648,1730920296041,-500.0,0.0003041,2]
[341480649,1730920296051,-500.0,0.0003041,2]
[341480650,1730920296060,-151.93157916,0.0003041,2]
[341480651,1730920296069,-559.12,0.0003041,2]
[341480652,1730920296079,-500.0,0.0003041,2]
[341480653,1730920296090,-605.04911478,0.0003041,2]
[341480654,1730920296101,-869.22,0.0003041,2]
[341480655,1730920296112,-815.31,0.0003041,2]
[341480656,1730920296123,-828.15,0.0003041,2]
[341480657,1730920296133,-500.0,0.0003041,2]
[341480658,1730920296142,-948.69,0.0003041,2]
[341480659,1730920296152,-500.0,0.0003041,2]
[341480660,1730920296163,-6450.1,0.0003041,2]
[341480661,1730920296173,-712.2,0.0003041,2]